[Event "Titled Tuesday Blitz November 15 Late 2022"]
[White "Riff, Vincent"]
[Black "Babazada, Khazar"]
[WhiteFideId "617776"]
[BlackFideId "13413554"]
[WhiteElo "2369"]
[BlackElo "2359"]
[Result "1-0"]
[Round "05"]
[TimeControl "180+1"]
[Date "2022.11.16"]
[WhiteClock "0:00:11"]
[BlackClock "0:00:03"]

1. e4 {[%clk 0:03:00]}  c5 {[%clk 0:02:59]} 2. Nc3 {[%clk 0:02:51]}  Nc6 {[%clk 0:02:58]} 3. Bb5 {[%clk 0:02:51]}  g6 {[%clk 0:02:56]} 4. Bxc6 {[%clk 0:02:50]}  dxc6 {[%clk 0:02:52]} 5. d3 {[%clk 0:02:50]}  Bg7 {[%clk 0:02:52]} 6. f4 {[%clk 0:02:51]}  Nf6 {[%clk 0:02:50]} 7. Nf3 {[%clk 0:02:51]}  O-O {[%clk 0:02:49]} 8. O-O {[%clk 0:02:51]}  b6 {[%clk 0:02:41]} 9. Qe1 {[%clk 0:02:51]}  Qc7 {[%clk 0:02:39]} 10. Qh4 {[%clk 0:02:47]}  b5 {[%clk 0:02:10]} 11. f5 {[%clk 0:02:44]}  b4 {[%clk 0:02:05]} 12. Ne2 {[%clk 0:02:42]}  c4 {[%clk 0:02:04]} 13. Bh6 {[%clk 0:02:40]}  cxd3 {[%clk 0:01:58]} 14. cxd3 {[%clk 0:02:39]}  Qb6+ {[%clk 0:01:57]} 15. Kh1 {[%clk 0:02:38]}  Ba6 {[%clk 0:01:38]} 16. Bxg7 {[%clk 0:02:27]}  Kxg7 {[%clk 0:01:38]} 17. e5 {[%clk 0:02:27]}  Ng8 {[%clk 0:01:28]} 18. Nf4 {[%clk 0:02:09]}  Rad8 {[%clk 0:01:10]} 19. Ng5 {[%clk 0:01:48]}  h6 {[%clk 0:00:52]} 20. fxg6 {[%clk 0:01:40]}  Qe3 {[%clk 0:00:40]} 21. Nh5+ {[%clk 0:01:35]}  Kxg6 {[%clk 0:00:38]} 22. Ne4 {[%clk 0:01:15]}  Bc8 {[%clk 0:00:32]} 23. Rf3 {[%clk 0:01:11]}  Qg5 {[%clk 0:00:26]} 24. Nxg5 {[%clk 0:01:09]}  hxg5 {[%clk 0:00:26]} 25. Nf4+ {[%clk 0:01:10]}  gxf4 {[%clk 0:00:26]} 26. Qxf4 {[%clk 0:01:10]}  Nh6 {[%clk 0:00:24]} 27. Rg3+ {[%clk 0:01:06]}  Kh7 {[%clk 0:00:23]} 28. Rf1 {[%clk 0:01:05]}  Bf5 {[%clk 0:00:22]} 29. h3 {[%clk 0:00:52]}  c5 {[%clk 0:00:19]} 30. Qh4 {[%clk 0:00:50]}  e6 {[%clk 0:00:18]} 31. Rg5 {[%clk 0:00:47]}  Rd4 {[%clk 0:00:18]} 32. Rf4 {[%clk 0:00:45]}  Rxf4 {[%clk 0:00:17]} 33. Qxf4 {[%clk 0:00:46]}  Bg6 {[%clk 0:00:14]} 34. h4 {[%clk 0:00:46]}  Rd8 {[%clk 0:00:14]} 35. Qf6 {[%clk 0:00:44]}  Rd4 {[%clk 0:00:11]} 36. g3 {[%clk 0:00:33]}  Ng8 {[%clk 0:00:09]} 37. Qf3 {[%clk 0:00:27]}  Rxd3 {[%clk 0:00:09]} 38. Qf4 {[%clk 0:00:24]}  Rd4 {[%clk 0:00:09]} 39. Qe3 {[%clk 0:00:19]}  Nh6 {[%clk 0:00:09]} 40. h5 {[%clk 0:00:18]}  Be4+ {[%clk 0:00:08]} 41. Kh2 {[%clk 0:00:17]}  Bf5 {[%clk 0:00:08]} 42. Qf2 {[%clk 0:00:12]}  Ng4+ {[%clk 0:00:08]} 43. Rxg4 {[%clk 0:00:12]}  Rxg4 {[%clk 0:00:08]} 44. Qxc5 {[%clk 0:00:12]}  Re4 {[%clk 0:00:08]} 45. Qe7 {[%clk 0:00:12]}  Re2+ {[%clk 0:00:08]} 46. Kg1 {[%clk 0:00:12]}  Re1+ {[%clk 0:00:05]} 47. Kf2 {[%clk 0:00:12]}  Rb1 {[%clk 0:00:06]} 48. Qxf7+ {[%clk 0:00:12]}  Kh6 {[%clk 0:00:05]} 49. g4 {[%clk 0:00:13]}  Rxb2+ {[%clk 0:00:05]} 50. Kg3 {[%clk 0:00:12]}  Be4 {[%clk 0:00:03]} 51. Qf4+ {[%clk 0:00:10]}  Kg7 {[%clk 0:00:03]} 52. Qxe4 {[%clk 0:00:11]} 1-0


[Site "https://www.chess.com"]

[Event "Titled Tuesday Blitz November 15 Late 2022"]
[White "Rodriguez Santiago, Jaime"]
[Black "Bouget, Alexandre"]
[WhiteFideId "3100898"]
[BlackFideId "681318"]
[WhiteElo "2025"]
[BlackElo "2177"]
[Result "0-1"]
[Round "05"]
[TimeControl "180+1"]
[Date "2022.11.16"]
[WhiteClock "0:00:33"]
[BlackClock "0:01:21"]

1. c4 {[%clk 0:03:00]}  e5 {[%clk 0:02:48]} 2. Nc3 {[%clk 0:03:00]}  Nc6 {[%clk 0:02:47]} 3. g3 {[%clk 0:03:00]}  g6 {[%clk 0:02:46]} 4. Bg2 {[%clk 0:02:59]}  Bg7 {[%clk 0:02:46]} 5. e4 {[%clk 0:02:59]}  Nge7 {[%clk 0:02:44]} 6. Nge2 {[%clk 0:02:59]}  d6 {[%clk 0:02:45]} 7. O-O {[%clk 0:02:59]}  O-O {[%clk 0:02:42]} 8. d3 {[%clk 0:02:55]}  f5 {[%clk 0:02:42]} 9. f4 {[%clk 0:02:44]}  Nd4 {[%clk 0:02:38]} 10. Nxd4 {[%clk 0:02:39]}  exd4 {[%clk 0:02:37]} 11. Ne2 {[%clk 0:02:39]}  fxe4 {[%clk 0:02:31]} 12. Bxe4 {[%clk 0:02:26]}  c6 {[%clk 0:02:20]} 13. Bg2 {[%clk 0:02:09]}  Nf5 {[%clk 0:02:13]} 14. Rb1 {[%clk 0:02:07]}  Re8 {[%clk 0:02:10]} 15. b4 {[%clk 0:02:05]}  Ne3 {[%clk 0:02:04]} 16. Bxe3 {[%clk 0:02:02]}  Rxe3 {[%clk 0:02:04]} 17. Nc1 {[%clk 0:01:56]}  Qe7 {[%clk 0:01:52]} 18. b5 {[%clk 0:01:49]}  c5 {[%clk 0:01:49]} 19. a4 {[%clk 0:01:47]}  h5 {[%clk 0:01:46]} 20. a5 {[%clk 0:01:46]}  Rb8 {[%clk 0:01:44]} 21. Rb2 {[%clk 0:01:30]}  Bg4 {[%clk 0:01:44]} 22. Qb3 {[%clk 0:01:26]}  b6 {[%clk 0:01:43]} 23. a6 {[%clk 0:01:23]}  Re8 {[%clk 0:01:41]} 24. Rbf2 {[%clk 0:01:20]}  h4 {[%clk 0:01:37]} 25. Bd5+ {[%clk 0:01:01]}  Kh7 {[%clk 0:01:35]} 26. Bf3 {[%clk 0:00:35]}  Bh3 {[%clk 0:01:24]} 27. Rd1 {[%clk 0:00:33]}  Re1+ {[%clk 0:01:21]} 0-1


[Site "https://www.chess.com"]

[Event "Titled Tuesday Blitz November 15 Late 2022"]
[White "Sabuk, Piotr"]
[Black "Mikaelyan, Arman"]
[WhiteFideId "1137565"]
[BlackFideId "13304852"]
[WhiteElo "2326"]
[BlackElo "2456"]
[Result "0-1"]
[Round "05"]
[TimeControl "180+1"]
[Date "2022.11.15"]
[WhiteClock "0:00:02"]
[BlackClock "0:00:19"]

1. d4 {[%clk 0:02:56]}  d5 {[%clk 0:02:59]} 2. c4 {[%clk 0:02:56]}  c6 {[%clk 0:02:58]} 3. Nf3 {[%clk 0:02:56]}  Nf6 {[%clk 0:02:59]} 4. g3 {[%clk 0:02:54]}  g6 {[%clk 0:02:55]} 5. Bg2 {[%clk 0:02:48]}  Bg7 {[%clk 0:02:56]} 6. O-O {[%clk 0:02:48]}  O-O {[%clk 0:02:56]} 7. cxd5 {[%clk 0:02:47]}  cxd5 {[%clk 0:02:57]} 8. Ne5 {[%clk 0:02:47]}  e6 {[%clk 0:02:54]} 9. Nc3 {[%clk 0:02:45]}  Nc6 {[%clk 0:02:53]} 10. Nxc6 {[%clk 0:02:42]}  bxc6 {[%clk 0:02:53]} 11. Bf4 {[%clk 0:02:34]}  Nd7 {[%clk 0:02:53]} 12. Na4 {[%clk 0:02:25]}  Ba6 {[%clk 0:02:53]} 13. Rc1 {[%clk 0:02:18]}  Bb5 {[%clk 0:02:53]} 14. Bd6 {[%clk 0:02:18]}  Re8 {[%clk 0:02:53]} 15. Nc5 {[%clk 0:02:16]}  Nxc5 {[%clk 0:02:37]} 16. Bxc5 {[%clk 0:02:15]}  e5 {[%clk 0:02:36]} 17. Re1 {[%clk 0:01:59]}  Qa5 {[%clk 0:02:07]} 18. a3 {[%clk 0:01:27]}  exd4 {[%clk 0:02:05]} 19. Bxd4 {[%clk 0:01:23]}  Bxd4 {[%clk 0:02:03]} 20. Qxd4 {[%clk 0:01:22]}  Rxe2 {[%clk 0:02:04]} 21. Rxe2 {[%clk 0:01:13]}  Bxe2 {[%clk 0:02:05]} 22. Qe5 {[%clk 0:00:41]}  Qd2 {[%clk 0:02:00]} 23. Qc3 {[%clk 0:00:34]}  Qxc3 {[%clk 0:01:06]} 24. Rxc3 {[%clk 0:00:35]}  d4 {[%clk 0:01:06]} 25. Rxc6 {[%clk 0:00:35]}  Rd8 {[%clk 0:01:07]} 26. Rc2 {[%clk 0:00:34]}  Bd3 {[%clk 0:00:39]} 27. Rd2 {[%clk 0:00:33]}  Bf5 {[%clk 0:00:40]} 28. f3 {[%clk 0:00:30]}  Kg7 {[%clk 0:00:39]} 29. Bf1 {[%clk 0:00:26]}  Kf6 {[%clk 0:00:39]} 30. Kf2 {[%clk 0:00:26]}  g5 {[%clk 0:00:38]} 31. Bd3 {[%clk 0:00:23]}  Bxd3 {[%clk 0:00:37]} 32. Rxd3 {[%clk 0:00:24]}  Ke5 {[%clk 0:00:38]} 33. Ke2 {[%clk 0:00:23]}  Rc8 {[%clk 0:00:38]} 34. Kd2 {[%clk 0:00:24]}  Rb8 {[%clk 0:00:35]} 35. Kc2 {[%clk 0:00:20]}  Kd5 {[%clk 0:00:35]} 36. Rb3 {[%clk 0:00:17]}  Re8 {[%clk 0:00:35]} 37. Kd2 {[%clk 0:00:17]}  Re7 {[%clk 0:00:30]} 38. Rb5+ {[%clk 0:00:17]}  Kc4 {[%clk 0:00:31]} 39. Rb4+ {[%clk 0:00:17]}  Kc5 {[%clk 0:00:30]} 40. Ra4 {[%clk 0:00:17]}  Re3 {[%clk 0:00:28]} 41. Rxa7 {[%clk 0:00:14]}  Rxf3 {[%clk 0:00:28]} 42. Ra5+ {[%clk 0:00:13]}  Kc4 {[%clk 0:00:27]} 43. Ra4+ {[%clk 0:00:09]}  Kd5 {[%clk 0:00:27]} 44. Ra5+ {[%clk 0:00:09]}  Ke4 {[%clk 0:00:28]} 45. Rxg5 {[%clk 0:00:09]}  Rf2+ {[%clk 0:00:28]} 46. Ke1 {[%clk 0:00:09]}  Rxb2 {[%clk 0:00:29]} 47. a4 {[%clk 0:00:07]}  Rxh2 {[%clk 0:00:28]} 48. Rg7 {[%clk 0:00:04]}  Ke3 {[%clk 0:00:27]} 49. Kf1 {[%clk 0:00:03]}  d3 {[%clk 0:00:25]} 50. Rxf7 {[%clk 0:00:03]}  d2 {[%clk 0:00:23]} 51. Re7+ {[%clk 0:00:03]}  Kf3 {[%clk 0:00:23]} 52. Rf7+ {[%clk 0:00:03]}  Kxg3 {[%clk 0:00:21]} 53. Rg7+ {[%clk 0:00:01]}  Kf3 {[%clk 0:00:20]} 54. Rf7+ {[%clk 0:00:02]}  Kg4 {[%clk 0:00:20]} 55. Rg7+ {[%clk 0:00:02]}  Kf4 {[%clk 0:00:20]} 56. Rf7+ {[%clk 0:00:02]}  Ke4 {[%clk 0:00:19]} 57. Rd7 {[%clk 0:00:02]}  Ke3 {[%clk 0:00:18]} 58. Re7+ {[%clk 0:00:03]}  Kd3 {[%clk 0:00:18]} 59. Rd7+ {[%clk 0:00:03]}  Kc3 {[%clk 0:00:18]} 60. a5 {[%clk 0:00:02]}  Rh1+ {[%clk 0:00:18]} 61. Ke2 {[%clk 0:00:02]}  Re1+ {[%clk 0:00:18]} 62. Kf2 {[%clk 0:00:03]}  d1=Q {[%clk 0:00:18]} 63. Rxd1 {[%clk 0:00:02]}  Rxd1 {[%clk 0:00:19]} 64. a6 {[%clk 0:00:02]}  Ra1 {[%clk 0:00:19]} 0-1


[Site "https://www.chess.com"]

[Event "Titled Tuesday Blitz November 15 Late 2022"]
[White "Sailer, Mike"]
[Black "Gonzalez, Francisco Silva"]
[WhiteFideId "2012901"]
[BlackFideId "1512285"]
[WhiteElo "2109"]
[BlackElo "2159"]
[Result "0-1"]
[Round "05"]
[TimeControl "180+1"]
[Date "2022.11.16"]
[WhiteClock "0:00:01"]
[BlackClock "0:01:46"]

1. Nf3 {[%clk 0:02:57]}  d5 {[%clk 0:02:57]} 2. c4 {[%clk 0:02:56]}  e6 {[%clk 0:02:57]} 3. g3 {[%clk 0:02:53]}  a6 {[%clk 0:02:57]} 4. cxd5 {[%clk 0:02:48]}  exd5 {[%clk 0:02:57]} 5. Bg2 {[%clk 0:02:30]}  Bd6 {[%clk 0:02:55]} 6. O-O {[%clk 0:02:28]}  Nf6 {[%clk 0:02:55]} 7. d4 {[%clk 0:02:17]}  O-O {[%clk 0:02:53]} 8. Nc3 {[%clk 0:02:17]}  c6 {[%clk 0:02:51]} 9. Bg5 {[%clk 0:02:12]}  Re8 {[%clk 0:02:50]} 10. Re1 {[%clk 0:02:01]}  h6 {[%clk 0:02:49]} 11. Bxf6 {[%clk 0:01:57]}  Qxf6 {[%clk 0:02:49]} 12. Na4 {[%clk 0:01:46]}  Bf5 {[%clk 0:02:46]} 13. Qb3 {[%clk 0:01:32]}  b5 {[%clk 0:02:39]} 14. Nc5 {[%clk 0:01:19]}  Ra7 {[%clk 0:02:38]} 15. e3 {[%clk 0:01:10]}  Bg4 {[%clk 0:02:34]} 16. Nd2 {[%clk 0:01:05]}  Nd7 {[%clk 0:02:34]} 17. Nxd7 {[%clk 0:01:01]}  Rxd7 {[%clk 0:02:33]} 18. Rec1 {[%clk 0:01:01]}  Rc7 {[%clk 0:02:27]} 19. a4 {[%clk 0:00:58]}  Be2 {[%clk 0:02:19]} 20. axb5 {[%clk 0:00:56]}  Bxb5 {[%clk 0:02:19]} 21. Bf1 {[%clk 0:00:46]}  Rb8 {[%clk 0:02:17]} 22. Bxb5 {[%clk 0:00:46]}  Rxb5 {[%clk 0:02:17]} 23. Qc2 {[%clk 0:00:41]}  Rcb7 {[%clk 0:02:12]} 24. b3 {[%clk 0:00:26]}  Bb4 {[%clk 0:02:05]} 25. Rxa6 {[%clk 0:00:22]}  Bxd2 {[%clk 0:02:04]} 26. Qxd2 {[%clk 0:00:23]}  Rxb3 {[%clk 0:02:02]} 27. Raxc6 {[%clk 0:00:12]}  Qf3 {[%clk 0:02:02]} 28. Qd1 {[%clk 0:00:06]}  Qf5 {[%clk 0:01:59]} 29. Qc2 {[%clk 0:00:05]}  Qxc2 {[%clk 0:01:54]} 30. R1xc2 {[%clk 0:00:06]}  Rb1+ {[%clk 0:01:53]} 31. Kg2 {[%clk 0:00:06]}  g6 {[%clk 0:01:52]} 32. Rd6 {[%clk 0:00:05]}  R7b5 {[%clk 0:01:51]} 33. Rc5 {[%clk 0:00:05]}  Rb7 {[%clk 0:01:45]} 34. Rcxd5 {[%clk 0:00:04]}  R1b2 {[%clk 0:01:46]} 35. Rf6 {[%clk 0:00:04]}  Kg7 {[%clk 0:01:46]} 36. Rf4 {[%clk 0:00:04]}  g5 {[%clk 0:01:46]} 37. Rff5 {[%clk 0:00:03]}  Kg6 {[%clk 0:01:46]} 38. e4 {[%clk 0:00:02]}  f6 {[%clk 0:01:46]} 39. Rd6 {[%clk 0:00:01]}  Rf7 {[%clk 0:01:46]} 0-1


[Site "https://www.chess.com"]

[Event "Titled Tuesday Blitz November 15 Late 2022"]
[White "Salman, Pavel"]
[Black "Bernat, David"]
[WhiteFideId "24153753"]
[BlackFideId "2099225"]
[WhiteElo "2187"]
[BlackElo "2342"]
[Result "1-0"]
[Round "05"]
[TimeControl "180+1"]
[Date "2022.11.16"]
[WhiteClock "0:00:03"]
[BlackClock "0:00:02"]

1. d4 {[%clk 0:02:59]}  d5 {[%clk 0:02:58]} 2. Nc3 {[%clk 0:02:54]}  Nf6 {[%clk 0:02:57]} 3. Bf4 {[%clk 0:02:51]}  c5 {[%clk 0:02:56]} 4. e4 {[%clk 0:02:49]}  cxd4 {[%clk 0:02:54]} 5. Qxd4 {[%clk 0:02:48]}  Nc6 {[%clk 0:02:49]} 6. Bb5 {[%clk 0:02:47]}  e6 {[%clk 0:02:45]} 7. O-O-O {[%clk 0:02:19]}  Bd7 {[%clk 0:02:38]} 8. Bxc6 {[%clk 0:02:08]}  bxc6 {[%clk 0:02:38]} 9. exd5 {[%clk 0:02:08]}  cxd5 {[%clk 0:02:37]} 10. Nf3 {[%clk 0:02:06]}  Qb6 {[%clk 0:02:18]} 11. Rhe1 {[%clk 0:01:37]}  Bc5 {[%clk 0:02:12]} 12. Qe5 {[%clk 0:01:25]}  O-O {[%clk 0:02:06]} 13. Bg5 {[%clk 0:01:18]}  Rab8 {[%clk 0:01:08]} 14. Na4 {[%clk 0:01:06]}  Bxa4 {[%clk 0:01:05]} 15. Bxf6 {[%clk 0:01:07]}  gxf6 {[%clk 0:00:57]} 16. Qxf6 {[%clk 0:01:08]}  d4 {[%clk 0:00:45]} 17. Qg5+ {[%clk 0:01:01]}  Kh8 {[%clk 0:00:42]} 18. Qf6+ {[%clk 0:01:02]}  Kg8 {[%clk 0:00:42]} 19. b3 {[%clk 0:00:49]}  Ba3+ {[%clk 0:00:27]} 20. Kb1 {[%clk 0:00:48]}  Rfc8 {[%clk 0:00:20]} 21. Rxd4 {[%clk 0:00:24]}  Rxc2 {[%clk 0:00:09]} 22. Rg4+ {[%clk 0:00:15]}  Kf8 {[%clk 0:00:09]} 23. Rxa4 {[%clk 0:00:05]}  Rb2+ {[%clk 0:00:05]} 24. Qxb2 {[%clk 0:00:04]}  Bxb2 {[%clk 0:00:05]} 25. Kxb2 {[%clk 0:00:05]}  Rc8 {[%clk 0:00:04]} 26. Nd4 {[%clk 0:00:03]}  Rd8 {[%clk 0:00:02]} 27. Re4 {[%clk 0:00:03]}  f5 {[%clk 0:00:02]} 28. Nxe6+ {[%clk 0:00:03]} 1-0


[Site "https://www.chess.com"]

[Event "Titled Tuesday Blitz November 15 Late 2022"]
[White "Sarana, Alexey"]
[Black "Baskakov, Egor"]
[WhiteFideId "24133795"]
[BlackFideId "24197866"]
[WhiteElo "2708"]
[BlackElo "2211"]
[Result "1-0"]
[Round "05"]
[TimeControl "180+1"]
[Date "2022.11.15"]
[WhiteClock "0:02:18"]
[BlackClock "0:02:45"]

1. c4 {[%clk 0:03:00]}  Nf6 {[%clk 0:02:59]} 2. Nc3 {[%clk 0:03:00]}  e6 {[%clk 0:02:59]} 3. e4 {[%clk 0:03:00]}  d5 {[%clk 0:02:59]} 4. cxd5 {[%clk 0:03:01]}  exd5 {[%clk 0:03:00]} 5. e5 {[%clk 0:03:01]}  d4 {[%clk 0:02:58]} 6. exf6 {[%clk 0:03:01]}  dxc3 {[%clk 0:02:59]} 7. Bb5+ {[%clk 0:03:00]}  c6 {[%clk 0:02:59]} 8. Qe2+ {[%clk 0:02:58]}  Be6 {[%clk 0:02:59]} 9. Bc4 {[%clk 0:02:58]}  cxd2+ {[%clk 0:03:00]} 10. Bxd2 {[%clk 0:02:57]}  Qxf6 {[%clk 0:03:00]} 11. Nf3 {[%clk 0:02:57]}  Nd7 {[%clk 0:02:59]} 12. O-O-O {[%clk 0:02:50]}  Be7 {[%clk 0:02:52]} 13. Bg5 {[%clk 0:02:47]}  Qg6 {[%clk 0:02:52]} 14. Bxe7 {[%clk 0:02:31]}  Bxc4 {[%clk 0:02:45]} 15. Qxc4 {[%clk 0:02:24]}  Kxe7 {[%clk 0:02:45]} 16. Rhe1+ {[%clk 0:02:21]}  Kd8 {[%clk 0:02:45]} 17. Rxd7+ {[%clk 0:02:18]} 1-0


[Site "https://www.chess.com"]

[Event "Titled Tuesday Blitz November 15 Late 2022"]
[White "Sreyas Payyappat"]
[Black "Rustemov, Alexander"]
[WhiteFideId "46674969"]
[BlackFideId "4119002"]
[WhiteElo "2083"]
[BlackElo "2816"]
[Result "0-1"]
[Round "05"]
[TimeControl "180+1"]
[Date "2022.11.16"]
[WhiteClock "0:00:16"]
[BlackClock "0:00:28"]

1. e4 {[%clk 0:03:00]}  e6 {[%clk 0:02:56]} 2. d4 {[%clk 0:03:00]}  d5 {[%clk 0:02:57]} 3. Nc3 {[%clk 0:03:01]}  Bb4 {[%clk 0:02:56]} 4. e5 {[%clk 0:03:01]}  c5 {[%clk 0:02:56]} 5. a3 {[%clk 0:03:02]}  Bxc3+ {[%clk 0:02:57]} 6. bxc3 {[%clk 0:03:02]}  Ne7 {[%clk 0:02:57]} 7. Qg4 {[%clk 0:03:01]}  O-O {[%clk 0:02:57]} 8. Bd3 {[%clk 0:02:59]}  Qa5 {[%clk 0:02:57]} 9. Bd2 {[%clk 0:02:59]}  Nbc6 {[%clk 0:02:58]} 10. Nf3 {[%clk 0:02:59]}  f5 {[%clk 0:02:58]} 11. exf6 {[%clk 0:02:59]}  Rxf6 {[%clk 0:02:58]} 12. Ne5 {[%clk 0:02:56]}  c4 {[%clk 0:02:36]} 13. Be2 {[%clk 0:02:34]}  Qa4 {[%clk 0:02:29]} 14. Bg5 {[%clk 0:02:26]}  Nxe5 {[%clk 0:02:21]} 15. dxe5 {[%clk 0:02:27]}  Rf7 {[%clk 0:02:21]} 16. Ra2 {[%clk 0:02:07]}  Nc6 {[%clk 0:02:13]} 17. Qg3 {[%clk 0:01:53]}  Bd7 {[%clk 0:02:07]} 18. O-O {[%clk 0:01:53]}  Kh8 {[%clk 0:01:58]} 19. f4 {[%clk 0:01:45]}  Qa5 {[%clk 0:01:50]} 20. Qh3 {[%clk 0:01:44]}  Qc5+ {[%clk 0:01:41]} 21. Kh1 {[%clk 0:01:43]}  Raf8 {[%clk 0:01:28]} 22. Bh5 {[%clk 0:01:32]}  Nxe5 {[%clk 0:01:27]} 23. Re1 {[%clk 0:01:19]}  Qf2 {[%clk 0:01:17]} 24. Raa1 {[%clk 0:01:09]}  Rxf4 {[%clk 0:01:13]} 25. Bxf4 {[%clk 0:01:03]}  Qxf4 {[%clk 0:01:12]} 26. g3 {[%clk 0:00:50]}  Qg5 {[%clk 0:00:59]} 27. Rf1 {[%clk 0:00:50]}  Rf6 {[%clk 0:00:57]} 28. Rxf6 {[%clk 0:00:47]}  gxf6 {[%clk 0:00:56]} 29. Rf1 {[%clk 0:00:37]}  Kg7 {[%clk 0:00:56]} 30. Qh4 {[%clk 0:00:26]}  Qxh4 {[%clk 0:00:54]} 31. gxh4 {[%clk 0:00:27]}  f5 {[%clk 0:00:48]} 32. Kg2 {[%clk 0:00:27]}  Kf6 {[%clk 0:00:47]} 33. Kg3 {[%clk 0:00:26]}  Ba4 {[%clk 0:00:47]} 34. Rb1 {[%clk 0:00:23]}  b5 {[%clk 0:00:47]} 35. Rc1 {[%clk 0:00:21]}  Nd7 {[%clk 0:00:43]} 36. Kf4 {[%clk 0:00:20]}  e5+ {[%clk 0:00:42]} 37. Ke3 {[%clk 0:00:20]}  f4+ {[%clk 0:00:38]} 38. Kd2 {[%clk 0:00:21]}  Nc5 {[%clk 0:00:38]} 39. Bf3 {[%clk 0:00:20]}  e4 {[%clk 0:00:37]} 40. Bh5 {[%clk 0:00:19]}  e3+ {[%clk 0:00:33]} 41. Ke2 {[%clk 0:00:19]}  Ne4 {[%clk 0:00:33]} 42. Kf3 {[%clk 0:00:19]}  Ke5 {[%clk 0:00:33]} 43. Rg1 {[%clk 0:00:18]}  Bxc2 {[%clk 0:00:30]} 44. Rg8 {[%clk 0:00:17]}  Bd1+ {[%clk 0:00:30]} 45. Kg2 {[%clk 0:00:17]}  Bxh5 {[%clk 0:00:30]} 46. Rg7 {[%clk 0:00:16]}  f3+ {[%clk 0:00:29]} 47. Kf1 {[%clk 0:00:16]}  e2+ {[%clk 0:00:28]} 48. Ke1 {[%clk 0:00:16]}  f2# {[%clk 0:00:28]} 0-1


[Site "https://www.chess.com"]

[Event "Titled Tuesday Blitz November 15 Late 2022"]
[White "Svane, Rasmus"]
[Black "Ter-Sahakyan, Samvel"]
[WhiteFideId "4657101"]
[BlackFideId "13302531"]
[WhiteElo "2674"]
[BlackElo "2584"]
[Result "0-1"]
[Round "05"]
[TimeControl "180+1"]
[Date "2022.11.15"]
[WhiteClock "0:00:04"]
[BlackClock "0:00:06"]

1. Nf3 {[%clk 0:03:00]}  d5 {[%clk 0:02:57]} 2. g3 {[%clk 0:03:01]}  g6 {[%clk 0:02:57]} 3. Bg2 {[%clk 0:03:01]}  Bg7 {[%clk 0:02:57]} 4. d4 {[%clk 0:03:02]}  Nf6 {[%clk 0:02:58]} 5. O-O {[%clk 0:03:03]}  O-O {[%clk 0:02:58]} 6. c4 {[%clk 0:03:03]}  dxc4 {[%clk 0:02:57]} 7. Na3 {[%clk 0:03:03]}  c3 {[%clk 0:02:57]} 8. bxc3 {[%clk 0:03:04]}  c5 {[%clk 0:02:57]} 9. Ne5 {[%clk 0:03:04]}  Nc6 {[%clk 0:02:54]} 10. Nxc6 {[%clk 0:03:01]}  bxc6 {[%clk 0:02:53]} 11. Nc4 {[%clk 0:03:02]}  Be6 {[%clk 0:02:43]} 12. Ne5 {[%clk 0:03:00]}  Bd5 {[%clk 0:02:28]} 13. Ba3 {[%clk 0:02:21]}  Bxg2 {[%clk 0:01:30]} 14. Kxg2 {[%clk 0:02:22]}  cxd4 {[%clk 0:01:16]} 15. cxd4 {[%clk 0:02:16]}  Qd5+ {[%clk 0:01:08]} 16. Kg1 {[%clk 0:01:57]}  Ne4 {[%clk 0:00:52]} 17. Qd3 {[%clk 0:01:37]}  c5 {[%clk 0:00:47]} 18. Nf3 {[%clk 0:00:58]}  cxd4 {[%clk 0:00:47]} 19. Bxe7 {[%clk 0:00:57]}  Rfe8 {[%clk 0:00:41]} 20. Ba3 {[%clk 0:00:48]}  Rac8 {[%clk 0:00:25]} 21. Bb2 {[%clk 0:00:19]}  Nc3 {[%clk 0:00:23]} 22. Rfe1 {[%clk 0:00:18]}  Qc4 {[%clk 0:00:13]} 23. Kf1 {[%clk 0:00:13]}  Re6 {[%clk 0:00:10]} 24. Rac1 {[%clk 0:00:09]}  Qxa2 {[%clk 0:00:09]} 25. Ba1 {[%clk 0:00:07]}  Qc4 {[%clk 0:00:09]} 26. Rc2 {[%clk 0:00:06]}  Qxd3 {[%clk 0:00:08]} 27. exd3 {[%clk 0:00:07]}  Rxe1+ {[%clk 0:00:09]} 28. Kxe1 {[%clk 0:00:06]}  Rb8 {[%clk 0:00:09]} 29. Bb2 {[%clk 0:00:04]}  a5 {[%clk 0:00:06]} 0-1


[Site "https://www.chess.com"]